[Event "*** Titled Tuesday Blitz"]
[Site "Chess.com"]
[Date "2021.03.30"]
[Round "4"]
[White "bait_or_mate"]
[Black "kingofthenil"]
[Result "1-0"]
[WhiteElo "2534"]
[BlackElo "2739"]
[TimeControl "180+1"]
[EndTime "10:40:21 PDT"]
[Termination "bait_or_mate won by resignation"]

1. d4 {[%clk 0:02:50.6]} 1... e5 {[%clk 0:02:58.3]} 2. c4 {[%clk 0:02:51.5]}
2... exd4 {[%clk 0:02:58.3]} 3. Qxd4 {[%clk 0:02:51.7]} 3... Nc6 {[%clk
0:02:58.4]} 4. Qd3 {[%clk 0:02:51.4]} 4... Nf6 {[%clk 0:02:56.7]} 5. Nc3 {[%clk
0:02:48.7]} 5... Bb4 {[%clk 0:02:55.2]} 6. g3 {[%clk 0:02:42.4]} 6... O-O {[%clk
0:02:44.6]} 7. Bg2 {[%clk 0:02:42.1]} 7... Ne5 {[%clk 0:02:44.1]} 8. Qd4 {[%clk
0:02:04.5]} 8... Re8 {[%clk 0:02:42.2]} 9. Nf3 {[%clk 0:02:00.1]} 9... c5 {[%clk
0:02:40.2]} 10. Qh4 {[%clk 0:01:52.9]} 10... Nd3+ {[%clk 0:02:27.8]} 11. Kf1
{[%clk 0:01:47.5]} 11... Nxc1 {[%clk 0:02:23]} 12. Rxc1 {[%clk 0:01:48.4]} 12...
d6 {[%clk 0:02:11.1]} 13. h3 {[%clk 0:01:35.6]} 13... Be6 {[%clk 0:02:06.9]} 14.
e3 {[%clk 0:01:29.2]} 14... d5 {[%clk 0:01:53.8]} 15. cxd5 {[%clk 0:01:19.7]}
15... Nxd5 {[%clk 0:01:54.7]} 16. Kg1 {[%clk 0:01:18.5]} 16... Nxc3 {[%clk
0:01:40.7]} 17. bxc3 {[%clk 0:01:12.8]} 17... Ba3 {[%clk 0:01:38]} 18. Rb1
{[%clk 0:01:09.8]} 18... Qd3 {[%clk 0:01:30.6]} 19. Kh2 {[%clk 0:01:07.4]} 19...
Bd5 {[%clk 0:01:03.7]} 20. Rhd1 {[%clk 0:00:52.6]} 20... Qc2 {[%clk 0:01:03.7]}
21. Ne1 {[%clk 0:00:15.3]} 21... Qxf2 {[%clk 0:01:03.8]} 22. Rxd5 {[%clk
0:00:15.1]} 22... Qxe3 {[%clk 0:00:58.6]} 23. Qf4 {[%clk 0:00:14.7]} 23... Qxc3
{[%clk 0:00:40.8]} 24. Rxb7 {[%clk 0:00:13.2]} 24... Rf8 {[%clk 0:00:36.1]} 25.
Nf3 {[%clk 0:00:12.2]} 25... Bc1 {[%clk 0:00:33.1]} 26. Qg4 {[%clk 0:00:07.2]}
26... Rae8 {[%clk 0:00:27.3]} 27. Rdd7 {[%clk 0:00:07.1]} 27... Re2 {[%clk
0:00:15.9]} 28. Nh4 {[%clk 0:00:07.2]} 28... Qc2 {[%clk 0:00:12]} 29. Qf3 {[%clk
0:00:06.5]} 29... Rf2 {[%clk 0:00:10.4]} 30. Qb3 {[%clk 0:00:06.5]} 30... Qxa2
{[%clk 0:00:08.2]} 31. Qxa2 {[%clk 0:00:06.2]} 31... Rxa2 {[%clk 0:00:09.1]} 32.
Rxa7 {[%clk 0:00:07.1]} 32... Rb2 {[%clk 0:00:07.5]} 33. Nf5 {[%clk 0:00:06.9]}
33... g6 {[%clk 0:00:07.5]} 34. Nd6 {[%clk 0:00:06.3]} 34... c4 {[%clk 0:00:04]}
35. Nxf7 {[%clk 0:00:05.5]} 35... Kg7 {[%clk 0:00:03.8]} 36. Ne5+ {[%clk
0:00:05.1]} 36... Kf6 {[%clk 0:00:03.9]} 37. Nxc4 {[%clk 0:00:05.4]} 37... Rc2
{[%clk 0:00:03.2]} 38. Nd6 {[%clk 0:00:05.2]} 38... Be3 {[%clk 0:00:02.7]} 39.
Rf7+ {[%clk 0:00:05]} 39... Ke6 {[%clk 0:00:01.8]} 40. Rxf8 {[%clk 0:00:04.9]}
40... Bxa7 {[%clk 0:00:02.5]} 41. Ne4 {[%clk 0:00:03.3]} 41... Re2 {[%clk
0:00:02.4]} 42. Re8+ {[%clk 0:00:03.7]} 42... Kf7 {[%clk 0:00:02.9]} 43. Ng5+
{[%clk 0:00:04.1]} 43... Kf6 {[%clk 0:00:03]} 44. Rxe2 {[%clk 0:00:03.2]} 44...
Kxg5 {[%clk 0:00:03.9]} 45. Ra2 {[%clk 0:00:03.6]} 45... Bb8 {[%clk 0:00:03.9]}
46. Ra4 {[%clk 0:00:04.5]} 46... h5 {[%clk 0:00:04.1]} 47. h4+ {[%clk
0:00:04.9]} 47... Kf6 {[%clk 0:00:04.4]} 48. Be4 {[%clk 0:00:05.4]} 48... Bc7
{[%clk 0:00:04.2]} 49. Ra6+ {[%clk 0:00:05.8]} 49... Ke5 {[%clk 0:00:04.1]} 50.
Bxg6 {[%clk 0:00:06.7]} 50... Kd4 {[%clk 0:00:03.4]} 51. Bxh5 {[%clk 0:00:07.6]}
51... Ke3 {[%clk 0:00:04.2]} 52. Bf3 {[%clk 0:00:08.1]} 52... Kf2 {[%clk
0:00:05.1]} 53. Rf6 {[%clk 0:00:06.2]} 53... Bxg3+ {[%clk 0:00:05]} 54. Kh3
{[%clk 0:00:06.7]} 54... Be5 {[%clk 0:00:05.4]} 55. Rf5 {[%clk 0:00:06.8]} 55...
Bd4 {[%clk 0:00:05.9]} 56. Bg4+ {[%clk 0:00:07.3]} 56... Ke3 {[%clk 0:00:06.8]}
57. h5 {[%clk 0:00:07.6]} 57... Ke4 {[%clk 0:00:07.2]} 58. h6 {[%clk 0:00:08.1]}
58... Bc3 {[%clk 0:00:05.6]} 59. h7 {[%clk 0:00:08.3]} 59... Bg7 {[%clk
0:00:05.9]} 60. Rf8 {[%clk 0:00:07.8]} 60... Ke5 {[%clk 0:00:06]} 61. h8=Q
{[%clk 0:00:08.2]} 61... Bxh8 {[%clk 0:00:06.4]} 62. Rxh8 {[%clk 0:00:09.1]}
62... Kf6 {[%clk 0:00:07.3]} 63. Rf8+ {[%clk 0:00:09.1]} 1-0

[Event "*** Titled Tuesday Blitz"]
[Site "Chess.com"]
[Date "2021.03.30"]
[Round "4"]
[White "Terao90"]
[Black "ChristopherYoo"]
[Result "0-1"]
[WhiteElo "2547"]
[BlackElo "2919"]
[TimeControl "180+1"]
[EndTime "10:40:23 PDT"]
[Termination "ChristopherYoo won on time"]

1. e4 {[%clk 0:03:00.9]} 1... c5 {[%clk 0:03:00]} 2. Nf3 {[%clk 0:02:59.5]} 2...
e6 {[%clk 0:03:00.5]} 3. g3 {[%clk 0:02:55.8]} 3... Nc6 {[%clk 0:02:58.2]} 4.
Bg2 {[%clk 0:02:55.9]} 4... Nf6 {[%clk 0:02:58.9]} 5. Qe2 {[%clk 0:02:49.7]}
5... Be7 {[%clk 0:02:57.1]} 6. O-O {[%clk 0:02:49.2]} 6... d5 {[%clk 0:02:57.2]}
7. exd5 {[%clk 0:02:44.5]} 7... Nxd5 {[%clk 0:02:58.1]} 8. Rd1 {[%clk
0:02:37.2]} 8... Qb6 {[%clk 0:02:57.9]} 9. Na3 {[%clk 0:02:35.6]} 9... O-O
{[%clk 0:02:56.8]} 10. Nc4 {[%clk 0:02:33.9]} 10... Qa6 {[%clk 0:02:56.6]} 11.
d4 {[%clk 0:02:28.6]} 11... Nb6 {[%clk 0:02:37.6]} 12. Bf1 {[%clk 0:02:23.3]}
12... Nxc4 {[%clk 0:02:34.3]} 13. Qxc4 {[%clk 0:02:24.2]} 13... Qxc4 {[%clk
0:02:11.5]} 14. Bxc4 {[%clk 0:02:25.1]} 14... b6 {[%clk 0:02:06]} 15. Be3 {[%clk
0:02:10.5]} 15... cxd4 {[%clk 0:02:02.9]} 16. Nxd4 {[%clk 0:02:10]} 16... Bb7
{[%clk 0:02:03.1]} 17. Nxc6 {[%clk 0:02:04.3]} 17... Bxc6 {[%clk 0:02:04]} 18.
c3 {[%clk 0:02:03.6]} 18... b5 {[%clk 0:02:00.5]} 19. Be2 {[%clk 0:02:00.6]}
19... a5 {[%clk 0:01:58.1]} 20. Rd2 {[%clk 0:01:50.3]} 20... Rab8 {[%clk
0:01:54.5]} 21. Rad1 {[%clk 0:01:49.5]} 21... Rfc8 {[%clk 0:01:51.8]} 22. Bf4
{[%clk 0:01:47.2]} 22... Rb7 {[%clk 0:01:51]} 23. Bd6 {[%clk 0:01:46.5]} 23...
Kf8 {[%clk 0:01:44.4]} 24. f4 {[%clk 0:01:44.2]} 24... Bd5 {[%clk 0:01:42.1]}
25. Bxe7+ {[%clk 0:01:41.4]} 25... Kxe7 {[%clk 0:01:43]} 26. a3 {[%clk
0:01:21.6]} 26... b4 {[%clk 0:01:42.5]} 27. Ba6 {[%clk 0:01:16.5]} 27... Rcc7
{[%clk 0:01:11]} 28. Bxb7 {[%clk 0:01:14.1]} 28... Rxb7 {[%clk 0:01:11.9]} 29.
cxb4 {[%clk 0:01:08]} 29... axb4 {[%clk 0:01:12.8]} 30. axb4 {[%clk 0:01:01.1]}
30... Rxb4 {[%clk 0:01:12.1]} 31. f5 {[%clk 0:00:59.2]} 31... h5 {[%clk
0:01:00.9]} 32. fxe6 {[%clk 0:00:41.4]} 32... Bxe6 {[%clk 0:01:01.8]} 33. Kf2
{[%clk 0:00:34.6]} 33... g5 {[%clk 0:01:00.2]} 34. Re1 {[%clk 0:00:34.2]} 34...
Kf6 {[%clk 0:00:58.2]} 35. Re3 {[%clk 0:00:34.5]} 35... Kg6 {[%clk 0:00:57.1]}
36. Red3 {[%clk 0:00:31.6]} 36... h4 {[%clk 0:00:55]} 37. Rd4 {[%clk 0:00:31.7]}
37... hxg3+ {[%clk 0:00:51.7]} 38. hxg3 {[%clk 0:00:32.6]} 38... Rb3 {[%clk
0:00:50.5]} 39. R4d3 {[%clk 0:00:29.7]} 39... Rb4 {[%clk 0:00:50.6]} 40. Rd4
{[%clk 0:00:27.4]} 40... Rb3 {[%clk 0:00:50.9]} 41. R4d3 {[%clk 0:00:20]} 41...
Rb5 {[%clk 0:00:44.2]} 42. Rd4 {[%clk 0:00:19.1]} 42... Bb3 {[%clk 0:00:17.2]}
43. g4 {[%clk 0:00:15.8]} 43... Kf6 {[%clk 0:00:15.1]} 44. Ke3 {[%clk
0:00:11.5]} 44... Rb8 {[%clk 0:00:12]} 45. Rf2+ {[%clk 0:00:09.3]} 45... Kg7
{[%clk 0:00:10.8]} 46. Rf5 {[%clk 0:00:06.2]} 46... Kg6 {[%clk 0:00:10.1]} 47.
Rd6+ {[%clk 0:00:03.7]} 47... Be6 {[%clk 0:00:10]} 48. Rf2 {[%clk 0:00:03.6]}
48... Rb3+ {[%clk 0:00:09.7]} 49. Kd4 {[%clk 0:00:02.5]} 49... Kg7 {[%clk
0:00:07.9]} 50. Ke5 {[%clk 0:00:01.9]} 50... Bxg4 {[%clk 0:00:07.3]} 51. Rg2
{[%clk 0:00:01.9]} 51... f5 {[%clk 0:00:07.5]} 52. Rd7+ {[%clk 0:00:02]} 52...
Kg6 {[%clk 0:00:07]} 53. Rd6+ {[%clk 0:00:02.2]} 53... Kf7 {[%clk 0:00:07.3]}
54. Rc2 {[%clk 0:00:01.9]} 54... Re3+ {[%clk 0:00:06]} 55. Kd4 {[%clk
0:00:02.3]} 55... Re4+ {[%clk 0:00:05.6]} 56. Kd3 {[%clk 0:00:03]} 56... Re7
{[%clk 0:00:03.8]} 57. Rcc6 {[%clk 0:00:02.9]} 57... f4 {[%clk 0:00:03.1]} 58.
Rf6+ {[%clk 0:00:03.5]} 58... Ke8 {[%clk 0:00:03.5]} 59. Rg6 {[%clk 0:00:03.6]}
59... Bf5+ {[%clk 0:00:03.7]} 60. Kd4 {[%clk 0:00:04.3]} 60... Bxg6 {[%clk
0:00:03.6]} 61. Rxg6 {[%clk 0:00:05.2]} 61... f3 {[%clk 0:00:03.4]} 62. Rxg5
{[%clk 0:00:04.3]} 62... f2 {[%clk 0:00:03.7]} 63. Rf5 {[%clk 0:00:04.4]} 63...
Rf7 {[%clk 0:00:03.7]} 0-1

[Event "*** Titled Tuesday Blitz"]
[Site "Chess.com"]
[Date "2021.03.30"]
[Round "4"]
[White "tjychess"]
[Black "Eltaj_Safarli"]
[Result "0-1"]
[WhiteElo "2692"]
[BlackElo "2867"]
[TimeControl "180+1"]
[EndTime "10:40:24 PDT"]
[Termination "Eltaj_Safarli won by resignation"]

1. d4 {[%clk 0:03:00.9]} 1... Nf6 {[%clk 0:02:58.1]} 2. c4 {[%clk 0:03:01.1]}
2... e6 {[%clk 0:02:57.3]} 3. Nf3 {[%clk 0:03:01.6]} 3... d5 {[%clk 0:02:54.8]}
4. Nc3 {[%clk 0:03:01.7]} 4... Be7 {[%clk 0:02:54.3]} 5. Bf4 {[%clk 0:03:01]}
5... O-O {[%clk 0:02:54.8]} 6. e3 {[%clk 0:03:01.4]} 6... Nbd7 {[%clk
0:02:55.1]} 7. c5 {[%clk 0:03:01.4]} 7... Ne4 {[%clk 0:02:54.5]} 8. Nxe4 {[%clk
0:02:46.5]} 8... dxe4 {[%clk 0:02:54.2]} 9. Ne5 {[%clk 0:02:42.8]} 9... Bg5
{[%clk 0:02:27.3]} 10. Nxd7 {[%clk 0:02:17.1]} 10... Bxd7 {[%clk 0:02:26.2]} 11.
Bg3 {[%clk 0:02:14.7]} 11... Bh4 {[%clk 0:02:25.6]} 12. Bc4 {[%clk 0:02:09.2]}
12... Bc6 {[%clk 0:02:23.2]} 13. Qh5 {[%clk 0:02:03]} 13... Be7 {[%clk
0:02:11.6]} 14. O-O {[%clk 0:02:00.8]} 14... Qd7 {[%clk 0:02:05.5]} 15. Qe2
{[%clk 0:01:44.1]} 15... a5 {[%clk 0:02:02.1]} 16. b3 {[%clk 0:01:39.1]} 16...
b5 {[%clk 0:02:01]} 17. cxb6 {[%clk 0:01:38.5]} 17... cxb6 {[%clk 0:02:01.9]}
18. a4 {[%clk 0:01:34.3]} 18... Rfc8 {[%clk 0:02:01.9]} 19. Rfc1 {[%clk
0:01:33.3]} 19... Bd5 {[%clk 0:01:59.2]} 20. h3 {[%clk 0:01:24]} 20... Bxc4
{[%clk 0:01:54.2]} 21. Rxc4 {[%clk 0:01:24.3]} 21... Rxc4 {[%clk 0:01:54.3]} 22.
bxc4 {[%clk 0:01:04.8]} 22... Rc8 {[%clk 0:01:52.8]} 23. Qc2 {[%clk 0:01:02.1]}
23... Qc6 {[%clk 0:01:50.6]} 24. Qb3 {[%clk 0:00:44.7]} 24... Qxc4 {[%clk
0:01:33.4]} 25. Qxb6 {[%clk 0:00:44.4]} 25... Bb4 {[%clk 0:01:24.3]} 26. Qb7
{[%clk 0:00:34.8]} 26... h6 {[%clk 0:01:22.7]} 27. Qxe4 {[%clk 0:00:33.3]} 27...
Qc2 {[%clk 0:01:18.8]} 28. Qg4 {[%clk 0:00:26.7]} 28... Qb2 {[%clk 0:01:05.8]}
29. Rf1 {[%clk 0:00:25.2]} 29... Rc1 {[%clk 0:01:06.2]} 30. Rxc1 {[%clk
0:00:23.4]} 30... Qxc1+ {[%clk 0:01:07.1]} 31. Kh2 {[%clk 0:00:24.3]} 31... Qc2
{[%clk 0:01:05]} 32. Be5 {[%clk 0:00:23.7]} 32... Bf8 {[%clk 0:01:04.5]} 33. d5
{[%clk 0:00:14.5]} 33... exd5 {[%clk 0:01:05.4]} 34. Qf4 {[%clk 0:00:13]} 34...
Qc4 {[%clk 0:01:01.6]} 35. Bc7 {[%clk 0:00:10.5]} 35... Bb4 {[%clk 0:00:56.9]}
36. Qe5 {[%clk 0:00:07.9]} 36... Qc6 {[%clk 0:00:53.6]} 37. Bb8 {[%clk 0:00:07]}
37... Qxa4 {[%clk 0:00:42.4]} 38. Qxd5 {[%clk 0:00:07.5]} 38... Qe8 {[%clk
0:00:41.7]} 39. Be5 {[%clk 0:00:06.4]} 39... Qc8 {[%clk 0:00:35.5]} 40. Qd4
{[%clk 0:00:06]} 40... Bf8 {[%clk 0:00:34.2]} 41. Qa4 {[%clk 0:00:05.2]} 41...
Bb4 {[%clk 0:00:31.4]} 42. f4 {[%clk 0:00:04.2]} 42... Qe6 {[%clk 0:00:28.6]}
43. Bd4 {[%clk 0:00:04.3]} 43... Qe4 {[%clk 0:00:27]} 44. Qd7 {[%clk 0:00:03.6]}
44... Qa8 {[%clk 0:00:24.4]} 45. Qa4 {[%clk 0:00:03.2]} 45... Kh7 {[%clk
0:00:22.4]} 46. Qb3 {[%clk 0:00:03.4]} 46... Qe8 {[%clk 0:00:19.4]} 47. Qc2+
{[%clk 0:00:03.4]} 47... Kg8 {[%clk 0:00:19.9]} 48. Qc4 {[%clk 0:00:04]} 48...
Bf8 {[%clk 0:00:19.3]} 49. Bc3 {[%clk 0:00:02.8]} 49... a4 {[%clk 0:00:19.5]}
50. Qd4 {[%clk 0:00:02.7]} 50... a3 {[%clk 0:00:19.1]} 51. e4 {[%clk 0:00:03.1]}
51... Qb5 {[%clk 0:00:14.9]} 52. Ba1 {[%clk 0:00:02.7]} 52... Qc5 {[%clk
0:00:13.4]} 53. Qxc5 {[%clk 0:00:01.8]} 53... Bxc5 {[%clk 0:00:14.3]} 54. Kg3
{[%clk 0:00:02.7]} 54... g6 {[%clk 0:00:10.1]} 55. Kf3 {[%clk 0:00:03]} 55...
Kf8 {[%clk 0:00:08.6]} 56. Ke2 {[%clk 0:00:03.4]} 56... f5 {[%clk 0:00:06.9]}
57. exf5 {[%clk 0:00:02.8]} 57... gxf5 {[%clk 0:00:07.8]} 58. g4 {[%clk
0:00:03.3]} 58... Kf7 {[%clk 0:00:07.5]} 59. gxf5 {[%clk 0:00:03.4]} 59... Be7
{[%clk 0:00:07.6]} 60. Kd3 {[%clk 0:00:03.3]} 60... Bf6 {[%clk 0:00:08.1]} 61.
Be5 {[%clk 0:00:03.4]} 61... Bxe5 {[%clk 0:00:07.9]} 62. fxe5 {[%clk 0:00:04.3]}
62... a2 {[%clk 0:00:08.8]} 0-1

[Event "*** Titled Tuesday Blitz"]
[Site "Chess.com"]
[Date "2021.03.30"]
[Round "4"]
[White "SaraciNderim"]
[Black "Horizonevent"]
[Result "1-0"]
[WhiteElo "2808"]
[BlackElo "2529"]
[TimeControl "180+1"]
[EndTime "10:40:25 PDT"]
[Termination "SaraciNderim won by resignation"]

1. d4 {[%clk 0:03:00.9]} 1... Nf6 {[%clk 0:02:59.3]} 2. Nf3 {[%clk 0:03:00.7]}
2... d5 {[%clk 0:02:57.4]} 3. c4 {[%clk 0:03:00.6]} 3... e6 {[%clk 0:02:57.8]}
4. Nc3 {[%clk 0:03:00.7]} 4... Nbd7 {[%clk 0:02:56.4]} 5. Bf4 {[%clk 0:03:00.5]}
5... dxc4 {[%clk 0:02:54.3]} 6. e3 {[%clk 0:02:58.7]} 6... Nb6 {[%clk
0:02:53.7]} 7. Be2 {[%clk 0:02:50.4]} 7... Nfd5 {[%clk 0:02:49.1]} 8. Bg3 {[%clk
0:02:48.7]} 8... Nxc3 {[%clk 0:02:43.2]} 9. bxc3 {[%clk 0:02:48.6]} 9... Bd7
{[%clk 0:02:43.8]} 10. Ne5 {[%clk 0:02:43.9]} 10... Ba4 {[%clk 0:02:39.7]} 11.
Qb1 {[%clk 0:02:42]} 11... Bd6 {[%clk 0:02:17.5]} 12. O-O {[%clk 0:02:31.8]}
12... Bxe5 {[%clk 0:02:12.4]} 13. Bxe5 {[%clk 0:02:31.5]} 13... O-O {[%clk
0:02:07.3]} 14. Qb4 {[%clk 0:02:13.8]} 14... Bc6 {[%clk 0:01:39.7]} 15. Rfd1
{[%clk 0:01:56.5]} 15... a5 {[%clk 0:01:17.9]} 16. Qb2 {[%clk 0:01:45.9]} 16...
Qd5 {[%clk 0:01:12.7]} 17. Bf3 {[%clk 0:01:44.4]} 17... Qd7 {[%clk 0:01:12.9]}
18. e4 {[%clk 0:01:41.1]} 18... f5 {[%clk 0:01:05.9]} 19. d5 {[%clk 0:01:31.6]}
19... exd5 {[%clk 0:01:00.2]} 20. exd5 {[%clk 0:01:31.3]} 20... Nxd5 {[%clk
0:00:51.2]} 21. Bxd5+ {[%clk 0:00:39.7]} 21... Bxd5 {[%clk 0:00:46.5]} 22. Qxb7
{[%clk 0:00:39.8]} 22... Rfd8 {[%clk 0:00:17]} 23. Qxc7 {[%clk 0:00:30.3]} 23...
Qxc7 {[%clk 0:00:16.9]} 24. Bxc7 {[%clk 0:00:31.2]} 24... Rd7 {[%clk 0:00:17.8]}
25. Be5 {[%clk 0:00:31.7]} 25... Raa7 {[%clk 0:00:15.3]} 26. f3 {[%clk
0:00:31.3]} 26... Rab7 {[%clk 0:00:15.6]} 27. Rab1 {[%clk 0:00:30.7]} 27... Rxb1
{[%clk 0:00:13.3]} 28. Rxb1 {[%clk 0:00:31.6]} 28... Rb7 {[%clk 0:00:13.9]} 29.
Rd1 {[%clk 0:00:31.7]} 29... Be6 {[%clk 0:00:14.3]} 30. Rd2 {[%clk 0:00:28.8]}
30... Kf7 {[%clk 0:00:14.6]} 31. h4 {[%clk 0:00:28.8]} 31... Rd7 {[%clk
0:00:11.5]} 32. Rb2 {[%clk 0:00:28.4]} 32... a4 {[%clk 0:00:10.6]} 33. Rb4
{[%clk 0:00:26.5]} 33... Rd1+ {[%clk 0:00:10.8]} 34. Kh2 {[%clk 0:00:26.9]}
34... Bd7 {[%clk 0:00:10.5]} 35. Rxc4 {[%clk 0:00:26.7]} 35... Rd2 {[%clk
0:00:10.3]} 36. a3 {[%clk 0:00:26.6]} 36... Ra2 {[%clk 0:00:10]} 37. Bd6 {[%clk
0:00:25.6]} 37... Ke6 {[%clk 0:00:10.4]} 38. Bb4 {[%clk 0:00:25.8]} 38... Bb5
{[%clk 0:00:05.6]} 39. Rc7 {[%clk 0:00:20.5]} 39... Bf1 {[%clk 0:00:05.5]} 40.
Rxg7 {[%clk 0:00:20.2]} 40... h5 {[%clk 0:00:03.8]} 41. Rg5 {[%clk 0:00:20]}
41... f4 {[%clk 0:00:03.8]} 42. Kg1 {[%clk 0:00:19.9]} 42... Ra1 {[%clk
0:00:02.2]} 43. Kh2 {[%clk 0:00:19]} 43... Ra2 {[%clk 0:00:02]} 44. c4 {[%clk
0:00:19.5]} 44... Bd3 {[%clk 0:00:01.3]} 45. c5 {[%clk 0:00:18.7]} 45... Kd7
{[%clk 0:00:01.2]} 46. Rxh5 {[%clk 0:00:18.5]} 46... Kc6 {[%clk 0:00:02.1]} 47.
Rg5 {[%clk 0:00:18.6]} 47... Bf1 {[%clk 0:00:02.7]} 48. h5 {[%clk 0:00:18.8]}
48... Bd3 {[%clk 0:00:02.6]} 49. h6 {[%clk 0:00:18.8]} 49... Bc2 {[%clk
0:00:03.1]} 50. Rh5 {[%clk 0:00:18.8]} 50... Bh7 {[%clk 0:00:02.7]} 51. Rh4
{[%clk 0:00:19.2]} 51... Kb5 {[%clk 0:00:02.5]} 52. Rxf4 {[%clk 0:00:19.4]}
52... Kc6 {[%clk 0:00:03.4]} 53. Rf6+ {[%clk 0:00:19.4]} 53... Kb5 {[%clk
0:00:04.3]} 54. Kg3 {[%clk 0:00:19.9]} 54... Ra1 {[%clk 0:00:04.3]} 55. Rf7
{[%clk 0:00:19.1]} 55... Bg6 {[%clk 0:00:02.2]} 56. Rb7+ {[%clk 0:00:18.4]}
56... Kc4 {[%clk 0:00:01.4]} 57. Rg7 {[%clk 0:00:19.3]} 57... Bd3 {[%clk
0:00:01.9]} 58. c6 {[%clk 0:00:19.2]} 58... Rh1 {[%clk 0:00:02.8]} 59. c7 {[%clk
0:00:19.3]} 59... Bf5 {[%clk 0:00:02.8]} 60. h7 {[%clk 0:00:19.3]} 60... Kb5
{[%clk 0:00:02.1]} 61. Bc3 {[%clk 0:00:18.7]} 61... Kc6 {[%clk 0:00:02.2]} 62.
Rf7 {[%clk 0:00:18.2]} 62... Bd7 {[%clk 0:00:01.7]} 63. h8=Q {[%clk 0:00:16.9]}
63... Rxh8 {[%clk 0:00:02.3]} 64. Bxh8 {[%clk 0:00:16.2]} 1-0

[Event "*** Titled Tuesday Blitz"]
[Site "Chess.com"]
[Date "2021.03.30"]
[Round "4"]
[White "szachuspl"]
[Black "dropstoneDP"]
[Result "0-1"]
[WhiteElo "2549"]
[BlackElo "2937"]
[TimeControl "180+1"]
[EndTime "10:40:26 PDT"]
[Termination "dropstoneDP won on time"]

1. d4 {[%clk 0:03:00.9]} 1... Nf6 {[%clk 0:03:00]} 2. c4 {[%clk 0:03:01.1]} 2...
g6 {[%clk 0:03:00.1]} 3. Nc3 {[%clk 0:03:00.2]} 3... Bg7 {[%clk 0:03:00.6]} 4.
e4 {[%clk 0:03:00.5]} 4... d6 {[%clk 0:03:01.2]} 5. Nf3 {[%clk 0:03:01.1]} 5...
O-O {[%clk 0:03:01.8]} 6. Be2 {[%clk 0:03:01.7]} 6... e5 {[%clk 0:03:02.4]} 7.
Be3 {[%clk 0:03:01.7]} 7... Qe7 {[%clk 0:03:01.6]} 8. d5 {[%clk 0:02:54.5]} 8...
Na6 {[%clk 0:03:01.9]} 9. Nd2 {[%clk 0:02:53.8]} 9... Nc5 {[%clk 0:03:02]} 10.
b4 {[%clk 0:02:53.1]} 10... Ncd7 {[%clk 0:03:02.1]} 11. O-O {[%clk 0:02:50.2]}
11... Ne8 {[%clk 0:03:02.4]} 12. f3 {[%clk 0:02:49.8]} 12... f5 {[%clk
0:03:02.9]} 13. Rc1 {[%clk 0:02:46.5]} 13... f4 {[%clk 0:03:03.3]} 14. Bf2
{[%clk 0:02:46.8]} 14... g5 {[%clk 0:03:04.2]} 15. c5 {[%clk 0:02:46.7]} 15...
a6 {[%clk 0:03:01.7]} 16. Nc4 {[%clk 0:02:43.5]} 16... h5 {[%clk 0:02:58.7]} 17.
c6 {[%clk 0:02:40.7]} 17... bxc6 {[%clk 0:02:57]} 18. dxc6 {[%clk 0:02:40.6]}
18... Ndf6 {[%clk 0:02:57.8]} 19. a4 {[%clk 0:02:36.2]} 19... g4 {[%clk
0:02:42.1]} 20. Bh4 {[%clk 0:02:32.7]} 20... Qf7 {[%clk 0:02:39.6]} 21. Na5
{[%clk 0:02:22.4]} 21... Be6 {[%clk 0:02:36.5]} 22. Kh1 {[%clk 0:02:12.1]} 22...
g3 {[%clk 0:02:32.9]} 23. Qd2 {[%clk 0:02:04.7]} 23... Kh7 {[%clk 0:02:09.5]}
24. Rcd1 {[%clk 0:02:03.8]} 24... Bh6 {[%clk 0:01:59.3]} 25. Nd5 {[%clk
0:01:56.4]} 25... Nxd5 {[%clk 0:01:55.9]} 26. exd5 {[%clk 0:01:56.6]} 26... Bf5
{[%clk 0:01:56.4]} 27. hxg3 {[%clk 0:01:40.5]} 27... fxg3 {[%clk 0:01:49]} 28.
Qc3 {[%clk 0:01:39.7]} 28... Bf4 {[%clk 0:01:35.3]} 29. Nc4 {[%clk 0:01:39.1]}
29... Ng7 {[%clk 0:01:33.5]} 30. b5 {[%clk 0:01:34.6]} 30... axb5 {[%clk
0:01:32.8]} 31. axb5 {[%clk 0:01:35.5]} 31... Ra2 {[%clk 0:01:32.5]} 32. Bd3
{[%clk 0:01:35.2]} 32... Qg6 {[%clk 0:01:21.7]} 33. b6 {[%clk 0:01:34]} 33...
cxb6 {[%clk 0:01:17.7]} 34. c7 {[%clk 0:01:28.1]} 34... Rc8 {[%clk 0:00:56.4]}
35. Nxb6 {[%clk 0:01:02]} 35... Bxd3 {[%clk 0:00:46.9]} 36. Nxc8 {[%clk
0:00:59.3]} 36... Bxf1 {[%clk 0:00:46.6]} 37. Rxf1 {[%clk 0:00:59.9]} 37... Rc2
{[%clk 0:00:34.8]} 38. Qb4 {[%clk 0:00:50.5]} 38... Qd3 {[%clk 0:00:31.7]} 39.
Rg1 {[%clk 0:00:46.2]} 39... Rxc7 {[%clk 0:00:05.2]} 40. Nxd6 {[%clk 0:00:46]}
40... Rc2 {[%clk 0:00:02.5]} 41. Qe4+ {[%clk 0:00:41.4]} 41... Qxe4 {[%clk
0:00:02.7]} 42. Nxe4 {[%clk 0:00:40.5]} 42... Nf5 {[%clk 0:00:02.8]} 43. Bg5
{[%clk 0:00:29.1]} 43... Bxg5 {[%clk 0:00:02.6]} 44. Nxg5+ {[%clk 0:00:30]}
44... Kg6 {[%clk 0:00:03.2]} 45. Ne4 {[%clk 0:00:30.7]} 45... Rc7 {[%clk
0:00:02]} 46. Rd1 {[%clk 0:00:29.6]} 46... Rd7 {[%clk 0:00:02.3]} 47. Rd3 {[%clk
0:00:28.2]} 47... h4 {[%clk 0:00:02.7]} 48. Kg1 {[%clk 0:00:28.2]} 48... Nd4
{[%clk 0:00:02.8]} 49. Kf1 {[%clk 0:00:27.9]} 49... Rxd5 {[%clk 0:00:02.8]} 50.
Nd2 {[%clk 0:00:23.1]} 50... Rc5 {[%clk 0:00:02.6]} 51. Nb3 {[%clk 0:00:07.4]}
51... Nxb3 {[%clk 0:00:02.6]} 52. Rxb3 {[%clk 0:00:07.8]} 52... Rc1+ {[%clk
0:00:03.5]} 53. Ke2 {[%clk 0:00:08]} 53... Rg1 {[%clk 0:00:04.4]} 54. Ke3 {[%clk
0:00:08.6]} 54... Rxg2 {[%clk 0:00:04.9]} 55. Rb4 {[%clk 0:00:08.9]} 55... Kg5
{[%clk 0:00:04.9]} 56. Rg4+ {[%clk 0:00:09.3]} 56... Kh5 {[%clk 0:00:05.1]} 57.
Re4 {[%clk 0:00:09.7]} 57... Rg1 {[%clk 0:00:05.5]} 58. Rxe5+ {[%clk 0:00:10.2]}
58... Kg6 {[%clk 0:00:05.8]} 59. Re6+ {[%clk 0:00:10.8]} 59... Kf7 {[%clk
0:00:06.2]} 60. Rh6 {[%clk 0:00:10.7]} 60... Re1+ {[%clk 0:00:06.5]} 61. Kf4
{[%clk 0:00:10.6]} 61... g2 {[%clk 0:00:07.4]} 0-1